bitfinex/quotes_ETHUSD_20250213
["timestamp","ask_amount","ask_price","bid_price","bid_amount"]
[1739406127644,4.48133469,2733.5,2733.4,0.248]
[1739406128567,10.03133469,2733.5,2733.4,0.248]
[1739406129185,18.32133469,2733.5,2733.4,0.248]
[1739406129473,18.32133469,2733.5,2732.7,0.286]
[1739406129474,4.43455,2732.8,2732.7,0.286]
[1739406129839,4.43455,2732.8,2732.0,0.0075]
[1739406129840,10.02669236,2732.8,2732.0,0.0075]
[1739406130037,3.65961,2732.6,2732.1,0.286]
[1739406130239,0.7818,2732.4,2731.9,6.085]
[1739406130437,0.04149524,2732.3,2731.9,6.085]
[1739406131254,5.59149524,2732.3,2731.9,6.085]
[1739406132880,11.14149524,2732.3,2731.9,6.085]
[1739406133676,11.14149524,2732.3,2732.0,4.99414]
[1739406133980,11.14149524,2732.3,2732.0,1.3339]
[1739406134176,16.69149524,2732.3,2732.0,1.3339]
[1739406134480,16.69149524,2732.3,2732.0,4.99421]
[1739406134637,16.69149524,2732.3,2732.0,4.99411]
[1739406135376,22.24149524,2732.3,2732.0,4.99411]
[1739406135676,22.24149524,2732.3,2732.0,1.3339]
[1739406136296,22.24149524,2732.3,2731.9,5.799]
[1739406136488,0.7519,2732.2,2731.9,6.085]
[1739406136868,0.04089642,2732.1,2731.9,6.085]
[1739406137800,5.59089642,2732.1,2731.9,6.085]
[1739406139008,11.14089642,2732.1,2731.9,6.085]
[1739406140381,16.69089642,2732.1,2731.9,6.085]
[1739406141082,16.69089642,2732.1,2732.0,3.66032]
[1739406141599,22.24089642,2732.1,2732.0,3.66032]
[1739406141900,22.24089642,2732.1,2731.9,10.52086]
[1739406142210,22.24089642,2732.1,2732.0,4.21782]
[1739406142785,27.79089642,2732.1,2732.0,4.21782]
[1739406144094,33.34089642,2732.1,2732.0,4.21782]
[1739406145429,38.89089642,2732.1,2732.0,4.21782]
[1739406145628,38.89089642,2732.1,2732.0,0.5575]
[1739406146430,38.89089642,2732.1,2732.0,4.21782]
[1739406146724,44.44089642,2732.1,2732.0,4.21782]
[1739406147931,49.99089642,2732.1,2732.0,4.21782]
[1739406149232,55.54089642,2732.1,2732.0,4.21782]
[1739406150295,55.54089642,2732.1,2732.0,4.22532]
[1739406150505,61.09089642,2732.1,2732.0,4.22532]
[1739406151019,61.09089642,2732.1,2732.0,8.02972]
[1739406151423,53.77053642,2732.1,2732.0,29.46005061]
[1739406151614,51.98101592,2732.1,2732.0,29.66005061]
[1739406151810,57.53101592,2732.1,2732.0,29.66005061]
[1739406152337,52.04113592,2732.1,2732.0,29.66005061]
[1739406152536,51.25063208,2732.1,2732.0,31.66005061]
[1739406152905,51.25063208,2732.1,2732.0,32.02705061]
[1739406153121,56.80063208,2732.1,2732.0,32.02705061]
[1739406153446,54.23054208,2732.1,2732.0,32.02705061]
[1739406153638,50.57036208,2732.1,2732.0,32.89771959]
[1739406153797,46.17018208,2732.1,2732.0,30.89771959]
[1739406154154,46.17018208,2732.1,2732.0,30.98371959]
[1739406154359,51.72018208,2732.1,2732.0,30.98371959]
[1739406154560,51.72018208,2732.1,2732.0,27.98371959]
[1739406154876,51.72018208,2732.1,2732.0,23.6616516]
[1739406155236,51.72018208,2732.1,2732.0,23.18120955]
[1739406155537,51.72018208,2732.1,2732.0,4.0282516]
[1739406155741,57.27018208,2732.1,2732.0,0.0819316]
[1739406155947,57.27018208,2732.1,2732.0,0.3604316]
[1739406156115,58.07768208,2732.1,2732.0,0.3529316]
[1739406157028,63.62768208,2732.1,2732.0,0.3529316]
[1739406158339,69.17768208,2732.1,2732.0,0.3529316]
[1739406158743,69.17768208,2732.1,2732.0,0.0669316]
[1739406158962,69.17768208,2732.1,2732.0,0.3529316]
[1739406159509,74.72768208,2732.1,2732.0,0.3529316]
[1739406160119,74.72768208,2732.1,2732.0,0.0669316]
[1739406160319,74.72768208,2732.1,2732.0,0.3529316]
[1739406160859,80.27768208,2732.1,2732.0,0.3529316]
[1739406161906,85.82768208,2732.1,2732.0,0.3529316]
[1739406163141,91.37768208,2732.1,2732.0,0.3529316]
[1739406164453,96.92768208,2732.1,2732.0,0.3529316]
[1739406165625,102.47768208,2732.1,2732.0,0.3529316]
[1739406166834,108.02768208,2732.1,2732.0,0.3529316]
[1739406168020,113.57768208,2732.1,2732.0,0.286]
[1739406169259,119.12768208,2732.1,2732.0,0.286]
[1739406170776,124.67768208,2732.1,2732.0,0.286]
[1739406171690,124.67768208,2732.1,2731.7,0.55]
[1739406171989,130.22768208,2732.1,2731.8,0.286]
[1739406173244,135.77768208,2732.1,2731.8,0.286]
[1739406174549,141.32768208,2732.1,2731.8,0.286]
[1739406176410,146.87768208,2732.1,2731.8,0.286]
[1739406177767,152.42768208,2732.1,2731.8,0.286]
[1739406179169,157.97768208,2732.1,2731.8,0.286]
[1739406179893,157.97768208,2732.1,2731.2,14.78183]
[1739406180205,3.66032,2732.0,2731.4,0.286]
[1739406180350,3.45263046,2732.0,2731.2,5.803]
[1739406180556,4.21533046,2731.7,2731.3,0.286]
[1739406180801,3.66092,2731.6,2731.3,0.286]
[1739406181097,3.69596993,2731.6,2731.3,0.286]
[1739406181347,0.7627,2731.7,2731.4,3.66102]
[1739406181551,0.03725841,2731.5,2731.4,3.661]
[1739406181718,6.3127,2731.7,2731.4,4.211]
[1739406181916,0.03459709,2731.5,2731.4,4.211]
[1739406182244,6.3127,2731.7,2731.4,4.211]
[1739406182716,0.03470687,2731.6,2731.4,4.211]
[1739406183364,5.58470687,2731.6,2731.4,4.211]
[1739406183771,5.55,2731.6,2731.4,4.211]
[1739406183975,5.55,2731.6,2731.4,0.55]
[1739406184933,11.1,2731.6,2731.5,3.66099]
[1739406185339,11.1,2731.6,2731.4,4.21111]
[1739406186270,11.1,2731.6,2731.5,4.22599]
[1739406186474,16.65,2731.6,2731.5,4.22599]
[1739406186774,162.67961258,2732.1,2732.0,3.67532]
[1739406186975,162.67961258,2732.1,2732.0,24.50238206]
[1739406187137,154.37540731,2732.1,2732.0,24.78838206]
[1739406187343,148.88513731,2732.1,2732.0,24.78838206]
[1739406187561,151.04437851,2732.1,2732.0,26.88838206]
[1739406187764,150.31266851,2732.1,2732.0,27.41947654]
[1739406187962,150.31266851,2732.1,2732.0,69.36818822]
[1739406187963,127.66656076,2732.1,2732.0,69.36818822]
[1739406188272,98.5538421,2732.1,2732.0,74.40728822]
[1739406188476,96.1206421,2732.1,2732.0,71.96342923]
[1739406188675,94.06099308,2732.1,2732.0,71.43233475]
[1739406188925,98.87699308,2732.1,2732.0,71.43233475]
[1739406189104,97.04629308,2732.1,2732.0,71.43233475]
[1739406189304,86.92832308,2732.1,2732.0,71.14633475]
[1739406189520,86.92832308,2732.1,2732.0,71.43233475]
[1739406189822,86.92832308,2732.1,2732.0,67.78947866]
[1739406190038,92.47832308,2732.1,2732.0,67.78947866]
[1739406190326,83.32787308,2732.1,2732.0,68.07547866]
[1739406190876,83.32787308,2732.1,2732.0,67.78947866]
[1739406191429,85.21769308,2732.1,2732.0,68.07547866]
[1739406191725,81.55751308,2732.1,2732.0,67.78947866]
[1739406191880,81.55751308,2732.1,2732.0,68.07547866]
[1739406192310,76.06724308,2732.1,2732.0,68.07547866]
[1739406192477,65.32907384,2732.1,2732.0,68.07547866]
[1739406193250,61.66889384,2732.1,2732.0,68.07547866]
[1739406193608,59.83880384,2732.1,2732.0,68.07547866]
[1739406193944,61.72862384,2732.1,2732.0,68.07547866]
[1739406194346,59.89853384,2732.1,2732.0,68.07547866]
[1739406194549,52.57817384,2732.1,2732.0,56.19947866]
[1739406194693,52.57817384,2732.1,2732.0,52.33612597]
[1739406195097,58.12817384,2732.1,2732.0,52.33612597]
[1739406195437,58.12817384,2732.1,2732.0,55.05012597]
[1739406195620,58.12817384,2732.1,2732.0,40.3919316]
[1739406195828,58.12817384,2732.1,2732.0,40.6779316]
[1739406196043,58.12817384,2732.1,2732.0,40.6704316]
[1739406196224,58.12817384,2732.1,2732.0,0.3529316]
[1739406196395,63.67817384,2732.1,2732.0,0.3529316]
[1739406196590,63.67817384,2732.1,2732.0,0.286]
[1739406196797,63.67817384,2732.1,2731.7,3.66072]
[1739406196798,63.67817384,2732.1,2731.7,38.66072]
[1739406197092,63.67817384,2732.1,2731.8,0.286]
[1739406197753,69.22817384,2732.1,2731.8,0.286]
[1739406197893,69.22817384,2732.1,2731.9,0.286]
[1739406198094,69.22817384,2732.1,2731.7,35.0]
[1739406198345,69.7799978,2732.1,2731.8,0.286]
[1739406198495,0.7609,2732.0,2731.2,5.803]
[1739406198703,0.7609,2731.9,2731.3,0.286]
[1739406199056,0.7609,2731.9,2731.4,35.0]
[1739406199343,0.7609,2731.9,2731.3,0.286]
[1739406199913,0.7609,2731.9,2731.3,35.286]
[1739406199914,4.37551025,2731.9,2731.3,35.286]
[1739406200138,0.7609,2731.9,2731.3,35.286]
[1739406200415,0.7609,2731.8,2731.3,35.286]
[1739406201848,6.3109,2731.8,2731.3,35.286]
[1739406202033,0.72129513,2731.6,2731.3,35.286]
[1739406202209,0.72129513,2731.6,2731.3,35.0]
[1739406202560,0.72129513,2731.6,2731.4,0.286]
[1739406202760,0.72129513,2731.6,2731.3,35.0]
[1739406202921,0.72129513,2731.6,2731.5,0.286]
[1739406203130,6.27129513,2731.6,2731.5,0.286]
[1739406204129,6.27129513,2731.6,2731.5,35.286]
[1739406204423,11.1,2731.6,2731.5,35.286]
[1739406205274,11.1,2731.6,2731.5,0.286]
[1739406205720,16.65,2731.6,2731.5,35.286]
[1739406206955,22.9609,2731.6,2731.5,0.286]
[1739406208274,28.5109,2731.6,2731.5,0.286]
[1739406209426,34.0609,2731.6,2731.5,0.286]
[1739406210680,39.6109,2731.6,2731.5,0.286]
[1739406211980,48.82175,2731.6,2731.5,0.286]
[1739406212179,49.60685051,2731.6,2731.2,5.803]
[1739406212484,45.1609,2731.6,2731.5,0.286]
[1739406212827,44.4,2731.6,2731.5,4.51199]
[1739406213484,49.95,2731.6,2731.5,7.52739]
[1739406213646,49.95,2731.6,2731.5,42.52739]
[1739406214180,49.95,2731.6,2731.5,42.59433385]
[1739406214680,55.5,2731.6,2731.5,42.59433385]
[1739406215180,55.5,2731.6,2731.5,42.57893385]
[1739406216098,61.05,2731.6,2731.5,42.57893385]
[1739406216762,61.05,2731.6,2731.5,38.63194385]
[1739406216990,61.05,2731.6,2731.5,0.91594385]
[1739406217300,66.6,2731.6,2731.5,0.286]
[1739406218594,72.15,2731.6,2731.5,0.286]
[1739406219781,77.7,2731.6,2731.5,0.286]
[1739406220861,4.48277,2731.5,2731.2,5.803]
[1739406221053,3.66113,2731.4,2731.3,0.286]
[1739406221847,4.48277,2731.5,2731.3,0.286]
[1739406222095,4.48277,2731.5,2731.2,5.803]
[1739406222096,0.8217,2731.5,2731.2,5.803]
[1739406222403,3.66115,2731.4,2731.2,5.803]
[1739406222782,3.66126,2731.3,2731.2,5.803]
[1739406222991,4.42436,2731.3,2731.2,5.803]
[1739406223188,5.787911,2731.3,2731.2,5.803]
[1739406223367,0.7631,2731.1,2729.8,35.0]
[1739406223574,3.66255,2730.4,2729.8,35.0]
[1739406223829,0.7631,2730.3,2729.7,5.804]
[1739406224118,4.32077437,2730.4,2729.7,6.09]
[1739406224119,3.66306,2730.0,2729.7,6.09]
[1739406224290,0.7631,2729.9,2729.7,41.09]
[1739406224486,3.66327,2729.8,2729.7,41.09]
[1739406224707,3.66327,2729.8,2729.7,40.804]
[1739406224888,3.66327,2729.8,2729.7,5.804]
[1739406225205,5.272713,2729.8,2729.7,5.804]
[1739406225409,9.59348737,2729.8,2729.7,5.804]
[1739406225575,9.59348737,2729.8,2729.7,5.38120494]
[1739406225981,4.49337,2729.2,2729.1,0.286]
[1739406227208,0.8293,2729.2,2729.1,0.286]
[1739406227407,0.8293,2729.2,2728.6,0.565]
[1739406227578,0.8293,2729.2,2728.7,0.286]
[1739406228127,0.8293,2729.2,2728.7,35.286]
[1739406228895,4.47226,2729.6,2728.8,0.565]
[1739406229529,4.47226,2729.6,2728.9,35.0]
[1739406229830,4.47226,2729.6,2729.0,0.5575]
[1739406230034,0.8087,2729.6,2729.0,0.5575]
[1739406230384,4.47224,2729.6,2729.1,35.0]
[1739406230789,3.66382,2729.4,2729.1,35.0]
[1739406230990,3.66407,2729.2,2729.1,35.0]
[1739406231190,3.66407,2729.2,2728.1,3.66549]
[1739406231191,3.66443,2729.0,2728.0,4.87530663]
[1739406231426,4.41623,2729.0,2728.4,0.565]
[1739406231743,0.7518,2729.4,2728.6,0.5575]
[1739406232239,4.41571,2729.4,2728.6,0.0075]
[1739406232442,3.66408,2729.2,2728.6,0.0075]
[1739406232737,3.66408,2729.2,2728.4,0.0075]
[1739406232937,3.66443,2729.0,2728.4,0.015]
[1739406233093,3.66462,2728.8,2728.5,0.286]
[1739406233488,4.43451,2728.8,2728.2,5.804]
[1739406233693,0.7698,2728.8,2728.3,0.286]
[1739406234240,0.7698,2728.8,2728.4,0.286]
[1739406235540,4.43529,2729.1,2728.4,0.286]
[1739406235690,8.0996,2729.1,2728.4,0.286]
[1739406236190,3.66435,2729.0,2728.4,0.286]
[1739406236546,4.43529,2729.1,2728.4,0.286]
[1739406237853,0.771,2729.1,2728.4,0.286]
[1739406238061,4.39965303,2729.3,2728.5,1.3581]
[1739406238361,3.66416,2729.2,2728.5,1.3581]
[1739406238661,3.66424,2729.1,2728.5,1.3581]
[1739406239156,3.66429,2729.1,2728.5,1.3581]
[1739406239360,3.66436,2729.0,2728.5,1.3581]
[1739406239560,3.66459,2728.9,2728.4,0.286]
[1739406239910,3.66466,2728.8,2728.4,0.286]
[1739406240560,7.32881,2729.0,2728.4,0.286]
[1739406240767,3.66419,2729.2,2728.4,3.9511]
[1739406240916,3.66419,2729.2,2728.5,0.03664531]
[1739406241266,3.66419,2729.2,2728.4,0.286]
[1739406241588,7.32838,2729.2,2728.4,0.286]
[1739406241752,3.66419,2729.2,2728.4,0.286]
[1739406241914,3.66441,2729.0,2728.5,0.286]
[1739406242353,3.66465,2728.8,2728.5,0.286]
[1739406242870,4.804805,2728.8,2728.2,5.804]
[1739406243013,3.665,2728.6,2728.5,0.286]
[1739406243524,3.66528,2728.3,2728.2,5.804]
[1739406243722,3.66528,2728.3,2728.2,6.09]
[1739406243927,4.43898,2728.3,2728.2,5.804]
[1739406244750,0.7737,2728.3,2728.1,0.286]
[1739406245051,0.366465,2728.8,2728.1,0.286]
[1739406245052,0.7737,2728.6,2728.1,0.286]
[1739406245447,4.43861,2728.6,2728.1,0.286]
[1739406245644,0.7737,2728.6,2728.1,0.286]
[1739406245843,3.66532,2728.3,2728.1,0.286]
[1739406246445,3.66556,2728.1,2727.7,0.1486987]
[1739406246793,3.66556,2728.1,2727.8,0.286]
[1739406247841,8.04906305,2728.3,2727.8,0.286]
[1739406248076,7.33076,2728.3,2727.8,0.286]
[1739406248473,3.66539,2728.3,2727.8,0.286]
[1739406248874,3.66525,2728.4,2727.8,0.286]
[1739406249121,3.66545,2728.2,2727.8,0.286]
[1739406249746,3.66552,2728.2,2727.8,0.286]
[1739406249996,0.74706,2728.4,2727.8,0.286]
[1739406250298,3.66571,2728.0,2727.9,0.286]
[1739406250850,3.66568,2728.0,2727.9,0.286]
[1739406252926,0.7581,2728.2,2727.9,0.286]
[1739406253208,3.66529,2728.3,2727.9,0.286]
[1739406254027,3.66568,2728.0,2727.9,0.286]
[1739406255619,3.66556,2728.1,2727.9,0.286]
[1739406255829,3.66568,2728.0,2727.9,0.286]
[1739406256673,3.66556,2728.1,2727.9,0.286]
[1739406256833,0.74706,2728.4,2727.9,0.286]
[1739406257033,3.66538,2728.3,2727.9,0.286]
[1739406257501,3.66556,2728.1,2727.9,0.286]
[1739406257915,3.66552,2728.2,2727.9,0.286]
[1739406258117,3.66553,2728.2,2727.9,0.286]
[1739406258444,3.66562,2728.1,2727.9,0.286]
[1739406258746,3.66555,2728.1,2727.9,0.286]
[1739406259615,3.66568,2728.0,2727.9,0.286]
[1739406259942,3.66555,2728.1,2727.9,0.286]
[1739406260144,3.66568,2728.0,2727.9,0.286]
[1739406260653,0.74706,2728.4,2727.9,0.286]
[1739406260873,3.6655,2728.2,2727.9,0.286]
[1739406261306,3.66558,2728.1,2727.9,0.286]
[1739406262247,7.33124,2728.1,2727.9,0.286]
[1739406262453,3.66568,2728.0,2727.9,0.286]
[1739406263238,3.66568,2728.0,2727.7,0.1486987]
[1739406263551,3.66568,2728.0,2727.9,0.286]
[1739406263905,3.66595,2727.8,2727.7,0.1486987]
[1739406264556,4.48775,2727.8,2727.7,0.1486987]
[1739406266022,4.58775,2727.8,2727.7,8.7e-06]
[1739406266241,7.58775,2727.8,2727.7,8.7e-06]
[1739406266562,3.66807,2726.3,2725.7,5.812]
[1739406266716,4.42824,2726.3,2726.0,0.286]
[1739406267255,3.66819,2726.2,2725.9,0.286]
[1739406267407,3.66825,2726.1,2725.9,0.286]
[1739406267752,3.66837,2726.0,2725.9,0.286]
[1739406267984,3.66837,2726.0,2725.8,0.286]
[1739406268278,3.66837,2726.0,2725.2,0.01331138]
[1739406268279,0.8226,2725.9,2725.2,0.01331138]
[1739406268419,3.66874,2725.8,2725.2,0.01331138]
[1739406268725,3.66865,2725.8,2725.2,0.01331138]
[1739406269270,0.8226,2725.9,2725.2,0.01331138]
[1739406269421,0.8226,2725.9,2725.3,0.7989]
[1739406269622,4.49122,2725.9,2725.3,0.7989]
[1739406269858,3.66874,2725.8,2725.3,0.7989]
[1739406270159,3.66932,2725.3,2725.2,0.01331138]
[1739406270845,4.49192,2725.3,2725.2,0.01331138]
[1739406271169,8.83901529,2725.3,2725.2,0.01331138]
[1739406271885,11.93901529,2725.3,2725.2,0.01331138]
[1739406272164,13.94192885,2725.3,2725.2,1.38e-06]
[1739406272370,13.89452885,2725.3,2725.2,1.38e-06]
[1739406273322,3.67038,2724.6,2724.1,0.286]
[1739406273523,4.34709529,2724.4,2722.9,5.815]
[1739406273719,0.8233,2723.4,2722.2,1.10528503]
[1739406273922,3.67266,2722.9,2722.2,1.10528503]
[1739406274183,0.8233,2723.4,2722.2,0.1486987]
[1739406274359,0.74292916,2723.6,2722.5,4.34709529]
[1739406274556,0.8233,2724.5,2722.9,3.0]
[1739406274759,0.8233,2724.8,2723.7,3.67141]
[1739406274926,0.75292405,2724.7,2723.8,0.5575]
[1739406275122,1.71225698,2724.7,2723.0,0.06715282]
[1739406275320,1.71225698,2724.7,2723.1,9.226]
[1739406275321,0.75292405,2724.7,2723.1,9.226]
[1739406275571,0.75292405,2724.7,2723.8,0.55]
[1739406275872,0.75292405,2724.7,2723.9,0.015]
[1739406276073,4.34709529,2725.5,2724.1,0.0075]
[1739406276074,3.67,2724.8,2724.1,0.0075]
[1739406276577,3.66979,2725.0,2724.3,0.5575]
[1739406277073,3.66941,2725.3,2724.4,0.0075]
[1739406277372,3.66949,2725.2,2724.4,0.0075]
[1739406278168,3.66977,2725.0,2724.4,0.0075]
[1739406278393,0.00732672,2725.5,2724.4,0.0075]
[1739406278545,3.66943,2725.3,2724.4,0.0075]
[1739406278742,3.66973,2725.0,2724.4,0.0075]
[1739406279633,3.66982,2725.0,2724.4,0.0075]
[1739406280251,3.66948,2725.2,2724.4,0.0075]
[1739406280977,3.66976,2725.0,2724.4,0.0075]
[1739406281335,3.67644672,2725.5,2724.4,0.0075]
[1739406281537,3.66918,2725.4,2724.3,0.5575]
[1739406281748,0.53167515,2725.5,2724.6,0.0075]
[1739406281970,3.66944,2725.3,2724.7,0.0935]
[1739406282176,3.66959,2725.1,2724.7,0.0935]
[1739406283965,3.66944,2725.3,2724.7,0.0935]
[1739406284154,3.66962,2725.1,2724.7,0.0935]
[1739406284998,0.2496,2725.3,2724.9,0.015]
[1739406285286,0.2496,2725.3,2725.2,4.23445]
[1739406285492,0.2496,2725.3,2725.2,7.43173292]
[1739406286083,0.2496,2725.3,2725.2,7.39504861]
[1739406286451,0.2496,2725.3,2725.2,16.37173128]
[1739406286684,0.2496,2725.3,2725.2,18.33504861]
[1739406286887,0.00732672,2725.5,2725.4,4.23418]
[1739406287057,0.00732672,2725.5,2725.4,15.60436898]
[1739406287565,0.00732672,2725.5,2725.4,15.70436898]
[1739406287886,0.8092,2727.7,2725.8,0.565]
[1739406288087,5.35751653,2727.7,2726.7,0.565]
[1739406288388,3.66649,2727.5,2726.8,0.286]
[1739406288586,3.6665,2727.4,2726.8,0.286]
[1739406288794,3.66649,2727.5,2727.0,0.0075]
[1739406289152,3.66677,2727.2,2726.9,0.5575]
[1739406289349,3.66677,2727.2,2726.9,3.5575]
[1739406289556,3.66677,2727.2,2726.9,0.5575]
[1739406290358,0.366677,2727.1,2726.7,0.0670617]
[1739406290572,3.6673,2726.8,2726.7,0.0670617]
[1739406290773,3.66768,2726.6,2725.9,8.94]
[1739406290976,3.66768,2726.6,2725.8,10.16409529]
[1739406290977,3.66812,2726.2,2725.8,5.817]
[1739406291159,3.66812,2726.2,2725.9,0.286]
[1739406291698,3.66812,2726.2,2726.0,0.286]
[1739406291987,3.66824,2726.1,2726.0,0.286]
[1739406292292,3.66851,2725.9,2725.8,6.103]
[1739406292586,3.66851,2725.9,2725.8,0.286]
[1739406294365,3.6691,2725.5,2725.1,0.0075]
[1739406294550,3.66927,2725.4,2725.2,0.286]
[1739406296261,3.66894,2725.6,2725.2,0.286]
[1739406296460,1.156512,2726.2,2725.3,0.565]
[1739406296784,3.66847,2726.0,2725.3,0.565]
[1739406296955,3.66815,2726.2,2725.3,0.565]
[1739406297160,3.66794,2726.4,2725.5,0.565]
[1739406297349,3.66794,2726.4,2725.8,0.565]
[1739406297961,3.6676,2726.6,2726.0,0.0075]
[1739406298171,3.66811,2726.2,2726.1,0.286]
[1739406298552,3.66846,2726.0,2725.8,0.06708384]
[1739406298766,7.33695,2726.0,2725.8,0.06708384]
[1739406298964,3.66846,2726.0,2725.8,0.06708384]
[1739406299909,3.66812,2726.2,2725.8,0.06708384]
[1739406300704,3.66817,2726.2,2725.8,0.06708384]
[1739406301003,3.66825,2726.1,2725.8,0.06708384]
[1739406301186,3.66891,2725.7,2725.2,3.0]
[1739406301386,3.66895,2725.6,2725.3,0.286]
[1739406301581,3.66857,2725.9,2725.3,0.286]
[1739406303173,3.66939,2725.3,2725.0,0.00733944]
[1739406303410,3.66959,2725.1,2725.0,0.00733944]
[1739406303706,3.66939,2725.3,2724.6,0.286]
[1739406303707,3.66992,2724.9,2724.6,0.286]
[1739406303859,3.66992,2724.9,2724.3,5.816]
[1739406304066,3.66981,2725.0,2724.4,0.286]
[1739406304265,3.66981,2725.0,2724.3,5.816]
[1739406304266,4.115281,2725.0,2724.3,6.102]
[1739406304461,3.67053,2724.4,2724.3,5.816]
[1739406305263,3.67042,2724.5,2724.3,5.816]
[1739406305462,3.67027,2724.6,2724.3,5.816]
[1739406305678,3.6704,2724.5,2724.3,5.816]
[1739406306012,3.67027,2724.6,2724.3,5.816]
[1739406306515,4.34709529,2725.7,2724.6,0.0075]
[1739406306663,3.66953,2725.2,2724.6,0.5575]
[1739406307268,3.66947,2725.2,2724.6,0.5575]
[1739406307591,3.66972,2725.0,2724.6,0.0075]
[1739406307774,3.66972,2725.0,2724.6,35.0]
[1739406307962,3.66914,2725.5,2723.9,0.286]
[1739406307963,3.67049,2724.5,2723.9,0.286]
[1739406308183,0.7864,2724.8,2723.6,0.286]
[1739406308184,3.67101,2724.1,2723.6,0.286]
[1739406308376,3.67101,2724.1,2723.7,35.0]
[1739406308581,3.67147,2723.7,2723.6,0.286]
[1739406308900,3.67121,2723.9,2723.6,0.286]
[1739406309645,4.45748,2724.0,2723.6,0.286]
[1739406309927,0.7864,2724.0,2723.6,0.286]
[1739406311125,3.67022,2724.7,2723.8,3.67125]
[1739406311436,3.66972,2725.0,2724.0,0.015]
[1739406311597,3.66986,2724.9,2724.1,0.55]
[1739406311918,3.66972,2725.0,2723.9,3.6711]
[1739406312082,4.34709529,2725.1,2723.9,3.67114]
[1739406312422,3.66991,2724.9,2724.1,3.67084]
[1739406312722,3.66959,2725.1,2724.4,3.67045]
[1739406313017,3.6698,2725.0,2724.4,3.67045]
[1739406313226,3.6698,2725.0,2724.5,0.286]
[1739406313418,3.6698,2725.0,2724.5,35.286]
[1739406313588,3.6698,2725.0,2724.5,0.286]
[1739406313783,0.810393,2725.1,2724.5,0.286]
[1739406313988,3.6696,2725.1,2724.6,35.0]
[1739406314184,0.7649,2725.2,2724.7,3.67009]
[1739406314487,4.22182502,2725.6,2723.9,3.0]
[1739406314488,3.67039,2724.5,2723.9,3.67111]
[1739406314698,0.7967,2725.5,2724.1,3.67085]
[1739406314897,3.66945,2725.2,2723.8,3.0]
[1739406315097,3.66945,2725.2,2723.7,3.67146]
[1739406315098,3.67063,2724.4,2723.9,0.286]
[1739406315338,3.67063,2724.4,2723.9,35.286]
[1739406315543,3.67019,2724.7,2724.0,0.55]
[1739406315688,3.67029,2724.6,2724.0,0.55]
[1739406315889,3.67039,2724.5,2724.0,0.55]
[1739406316132,3.6704,2724.5,2724.0,0.55]
[1739406316511,3.67066,2724.4,2723.9,35.286]
[1739406317437,3.67029,2724.6,2724.0,3.67105]
[1739406317623,3.67006,2724.8,2724.1,3.67084]
[1739406317824,3.67021,2724.7,2724.1,3.67084]
[1739406318210,3.67006,2724.8,2724.2,0.55]
[1739406318851,3.67026,2724.6,2724.1,0.55]
[1739406319489,3.67006,2724.8,2724.1,0.55]
[1739406319810,3.67039,2724.6,2724.0,6.67105]
[1739406320009,3.66993,2724.9,2724.2,3.67074]
[1739406320202,3.67002,2724.8,2724.2,3.67074]
[1739406320653,3.66993,2724.9,2724.1,4.23583]
[1739406320854,3.66993,2724.9,2724.2,0.565]
[1739406321156,3.66974,2725.0,2724.4,0.015]
[1739406321310,3.66974,2725.0,2724.2,0.55]
[1739406321311,3.67024,2724.7,2724.2,0.55]
[1739406321506,0.73394,2725.0,2724.2,0.55]
[1739406321739,3.67048,2724.5,2724.3,0.286]
[1739406321906,5.56127058,2725.3,2724.3,0.286]
[1739406322111,3.67053,2724.4,2724.2,0.286]
[1739406322360,3.67077,2724.3,2724.2,0.286]
[1739406322911,3.67058,2724.4,2724.2,0.286]
[1739406323155,4.45874,2724.6,2723.6,3.0]
[1739406323156,0.7884,2724.6,2723.6,3.0]
[1739406323359,0.7884,2724.6,2723.7,0.286]
[1739406323360,3.67112,2724.0,2723.7,0.286]
[1739406324065,3.67144,2723.8,2723.2,0.0075]
[1739406324209,4.50233,2724.4,2723.2,0.0075]
[1739406324415,3.67169,2723.6,2723.2,0.286]
[1739406324614,3.67169,2723.6,2723.2,35.286]
[1739406324862,3.67149,2723.7,2723.2,35.286]
[1739406325016,3.67139,2723.8,2723.2,35.286]
[1739406325216,3.67139,2723.8,2723.2,38.95813]
[1739406325449,3.67113,2724.0,2723.3,0.55]
[1739406325715,3.6708,2724.2,2723.6,0.0075]
[1739406326110,3.6708,2724.2,2723.6,3.67902]
[1739406326316,0.8318,2724.4,2723.2,38.95809]
[1739406326552,3.67122,2723.9,2723.3,3.0]
[1739406326727,3.67102,2724.1,2723.4,3.67183]
[1739406326983,3.67126,2723.9,2723.3,3.0]
[1739406327121,3.67073,2724.3,2723.5,3.9577]
[1739406327316,3.67082,2724.2,2723.6,4.22158]
[1739406327524,3.67054,2724.4,2723.8,0.55]
[1739406327824,3.67088,2724.2,2723.8,0.55]
[1739406328228,3.67032,2724.6,2724.0,3.67101]
[1739406328579,3.6704,2724.5,2723.9,0.55]
[1739406329095,3.67054,2724.4,2723.9,0.55]
[1739406329234,3.67067,2724.3,2723.8,0.565]
[1739406329733,3.67048,2724.5,2723.9,0.5575]
[1739406330149,3.67038,2724.6,2723.9,0.5575]
[1739406330350,3.67038,2724.6,2724.0,3.67099]
[1739406330548,3.67004,2724.8,2724.1,0.55]